lending/lending_fUSD_20241007
["ID","MTS","AMOUNT","RATE_DAILY","PERIOD"]
[340012797,1728328275464,-500.0,0.00039452,120]
[340012798,1728328275473,-500.0,0.00039452,120]
[340012799,1728328275483,-500.0,0.00039452,120]
[340012800,1728328275492,-500.0,0.00039452,120]
[340012801,1728328275502,-500.0,0.00039452,120]
[340012802,1728328275511,-500.0,0.00039452,120]
[340012803,1728328275520,-239.40516521,0.00039452,120]
[340012804,1728328275531,-473.51672453,0.00039452,120]
[340012805,1728328275540,-500.0,0.00039452,120]
[340012806,1728328275550,-500.0,0.00039452,120]
[340012807,1728328275559,-500.0,0.00039452,120]
[340012808,1728328275568,-500.0,0.00039452,120]
[340012809,1728328275577,-500.0,0.00039452,120]
[340012810,1728328275586,-500.0,0.00039452,120]
[340012811,1728328275595,-339.91976598,0.00039452,120]
[340012812,1728328275607,-456.06647525,0.00039452,120]
[340012813,1728328275616,-500.0,0.00039452,120]
[340012814,1728328275625,-500.0,0.00039452,120]
[340012815,1728328275634,-500.0,0.00039452,120]
[340012816,1728328275643,-500.0,0.00039452,120]
[340012817,1728328275653,-500.0,0.00039452,120]
[340012818,1728328275662,-500.0,0.00039452,90]
[340012819,1728328275672,-500.0,0.00039452,120]
[340012820,1728328275681,-500.0,0.00039452,120]
[340012821,1728328275690,-500.0,0.00039452,120]
[340012822,1728328275699,-500.0,0.00039452,120]
[340012823,1728328275709,-500.0,0.00039452,120]
[340012824,1728328275718,-483.61435615,0.00039452,120]
[340012825,1728328275728,-500.0,0.00039452,120]
[340012826,1728328275738,-500.0,0.00039452,120]
[340012827,1728328275747,-391.64,0.00039452,120]
[340012828,1728328275757,-219.04810951,0.00039452,120]
[340012829,1728328275766,-500.0,0.00039452,120]
[340012830,1728328275775,-500.0,0.00039452,120]
[340012831,1728328275784,-500.0,0.00039452,120]
[340012832,1728328275794,-500.0,0.00039452,120]
[340012833,1728328275803,-348.28598505,0.00039452,120]
[340012834,1728328275812,-500.0,0.00039452,120]
[340012835,1728328275821,-500.0,0.00039452,120]
[340012836,1728328275830,-500.0,0.00039452,120]
[340012837,1728328275839,-500.0,0.00039452,120]
[340012838,1728328275849,-500.0,0.00039452,120]
[340012839,1728328275858,-500.0,0.00039452,120]
[340012840,1728328275867,-500.0,0.00039452,120]
[340012841,1728328275876,-500.0,0.00039452,120]
[340012842,1728328275885,-503.0,0.00039452,120]
[340012843,1728328275894,-500.0,0.00039452,120]
[340012844,1728328275903,-1259.32,0.00039452,120]
[340012845,1728328275913,-500.0,0.00039452,120]
[340012846,1728328275922,-500.0,0.00039452,120]
[340012847,1728328275932,-510.81636208,0.00039452,120]
[340012848,1728328275941,-500.0,0.00039452,120]
[340012849,1728328275951,-442.15935951,0.00039452,120]
[340012850,1728328275959,-500.0,0.00039452,120]
[340012851,1728328275968,-500.0,0.00039452,120]
[340012852,1728328275978,-588.66,0.00039452,120]
[340012853,1728328275987,-500.0,0.00039452,120]
[340012854,1728328275997,-428.80985107,0.00039452,120]
[340012855,1728328276006,-446.89872209,0.00039452,120]
[340012856,1728328276015,-500.0,0.00039452,120]
[340012857,1728328276025,-500.0,0.00039452,120]
[340012858,1728328276034,-500.0,0.00039452,120]
[340012859,1728328276043,-205.68,0.00039452,120]
[340012860,1728328276053,-500.0,0.00039452,120]
[340012861,1728328276062,-500.0,0.00039452,120]
[340012862,1728328276072,-451.20134603,0.00039452,120]
[340012863,1728328276081,-500.0,0.00039452,120]
[340012864,1728328276091,-500.0,0.00039452,14]
[340012865,1728328276101,-512.09,0.00039452,120]
[340012866,1728328276110,-500.0,0.00039452,120]
[340012867,1728328276119,-500.0,0.00039452,120]
[340012868,1728328276130,-500.0,0.00039452,120]
[340012869,1728328276140,-253.62046912,0.00039452,120]
[340012870,1728328276149,-500.0,0.00039452,120]
[340012871,1728328276159,-197.28308879,0.00039452,120]
[340012872,1728328276168,-500.0,0.00039452,120]
[340012873,1728328276178,-538.11,0.00039452,120]
[340012874,1728328276187,-500.0,0.00039452,120]
[340012875,1728328276197,-500.0,0.00039452,120]
[340012876,1728328276207,-500.0,0.00039452,120]
[340012877,1728328276217,-500.0,0.00039452,120]
[340012878,1728328276226,-656.69,0.00039452,120]
[340012879,1728328276235,-461.69,0.00039452,120]
[340012880,1728328276244,-450.06254046,0.00039452,120]
[340012881,1728328276253,-500.0,0.00039452,120]
[340012882,1728328276263,-241.09444059,0.00039452,120]
[340012883,1728328276272,-500.0,0.00039452,120]
[340012884,1728328276281,-500.0,0.00039452,120]
[340012885,1728328276290,-500.0,0.00039452,120]
[340012886,1728328276300,-500.0,0.00039452,120]
[340012887,1728328276309,-500.0,0.00039452,120]
[340012888,1728328276318,-500.0,0.00039452,120]
[340012889,1728328276328,-531.62,0.00039452,120]
[340012890,1728328276337,-500.0,0.00039452,120]
[340012891,1728328276346,-502.44,0.00039452,120]
[340012892,1728328276357,-500.0,0.00039452,120]
[340012893,1728328276367,-500.0,0.00039452,120]
[340012894,1728328276376,-521.88571581,0.00039452,120]
[340012895,1728328276386,-500.0,0.00039452,120]
[340012896,1728328276395,-500.0,0.00039452,120]
[340012897,1728328276405,-397.83183511,0.00039452,120]
[340012898,1728328276415,-500.0,0.00039452,120]
[340012899,1728328276424,-551.17742,0.00039452,120]
[340012900,1728328276434,-500.0,0.00039452,120]
[340012901,1728328276443,-645.759054,0.00039452,14]
[340012902,1728328276453,-500.0,0.00039452,120]
[340012903,1728328276462,-645.759054,0.00039452,14]
[340012904,1728328276471,-500.0,0.00039452,120]
[340012905,1728328276482,-2246.05,0.00039452,120]
[340012906,1728328276491,-500.0,0.00039452,120]
[340012907,1728328276501,-500.0,0.00039452,21]
[340012908,1728328276510,-500.0,0.00039452,120]
[340012909,1728328276520,-500.0,0.00039452,120]
[340012910,1728328276530,-500.0,0.00039452,120]
[340012911,1728328276539,-500.0,0.00039452,120]
[340012912,1728328276549,-500.0,0.00039452,120]
[340012913,1728328276558,-500.0,0.00039452,120]
[340012914,1728328276568,-500.0,0.00039452,120]
[340012915,1728328276578,-500.0,0.00039452,120]
[340012916,1728328276587,-500.0,0.00039452,120]
[340012917,1728328276596,-500.0,0.00039452,120]
[340012918,1728328276608,-500.0,0.00039452,120]
[340012919,1728328276618,-500.0,0.00039452,120]
[340012920,1728328276627,-623.39820501,0.00039452,120]
[340012921,1728328276724,-500.0,0.00039452,120]
[340012922,1728328276735,-500.0,0.00039452,120]
[340012923,1728328276745,-325.42,0.00039452,120]
[340012924,1728328276754,-500.0,0.00039452,120]
[340012925,1728328276764,-500.0,0.00039452,120]
[340012926,1728328276774,-217.4,0.00039452,120]
[340012927,1728328276783,-238.64877245,0.00039452,120]
[340012928,1728328276792,-500.0,0.00039452,120]
[340012929,1728328276802,-500.0,0.00039452,120]
[340012930,1728328276811,-500.0,0.00039452,120]
[340012931,1728328276820,-231.73,0.00039452,120]
[340012932,1728328276829,-231.58,0.00039452,120]
[340012933,1728328276838,-500.0,0.00039452,24]
[340012934,1728328276848,-419.44,0.00039452,120]
[340012935,1728328276858,-273.95691675,0.00039452,120]
[340012936,1728328276868,-500.0,0.00039452,120]
[340012937,1728328276877,-500.0,0.00039452,120]
[340012938,1728328276886,-500.0,0.00039452,120]
[340012939,1728328276896,-500.0,0.00039452,120]
[340012940,1728328276905,-500.0,0.00039452,120]
[340012941,1728328276914,-500.0,0.00039452,120]
[340012942,1728328276924,-500.0,0.00039452,120]
[340012943,1728328276933,-500.0,0.00039452,120]
[340012944,1728328276942,-514.88,0.00039452,120]
[340012945,1728328276951,-500.0,0.00039452,120]
[340012946,1728328276960,-500.0,0.00039452,120]
[340012947,1728328276969,-500.0,0.00039452,120]
[340012948,1728328276978,-579.36427824,0.00039452,120]
[340012949,1728328276987,-500.0,0.00039452,120]
[340012950,1728328276996,-500.0,0.00039452,120]
[340012951,1728328277005,-525.2679644,0.00039452,120]
[340012952,1728328277014,-569.20029722,0.00039452,120]
[340012953,1728328277023,-500.0,0.00039452,120]
[340012954,1728328277032,-500.0,0.00039452,120]
[340012955,1728328277041,-500.0,0.00039452,120]
[340012956,1728328277050,-500.0,0.00039452,120]
[340012957,1728328277058,-500.0,0.00039452,120]
[340012958,1728328277067,-318.99350459,0.00039452,120]
[340012959,1728328277077,-500.0,0.00039452,120]
[340012960,1728328277086,-500.0,0.00039452,120]
[340012961,1728328277095,-500.0,0.00039452,120]
[340012962,1728328277105,-500.0,0.00039452,120]
[340012963,1728328277114,-500.0,0.00039452,120]
[340012964,1728328277124,-500.0,0.00039452,120]
[340012965,1728328277137,-505.9,0.00039452,120]
[340012966,1728328277146,-226.44748152,0.00039452,120]
[340012967,1728328277155,-500.0,0.00039452,120]
[340012968,1728328277164,-500.0,0.00039452,120]
[340012969,1728328277173,-500.0,0.00039452,120]
[340012970,1728328277183,-500.0,0.00039452,120]
[340012971,1728328277192,-500.0,0.00039452,120]
[340012972,1728328277201,-500.0,0.00039452,120]
[340012973,1728328277210,-2095.07,0.00039452,120]
[340012974,1728328277219,-500.0,0.00039452,120]
[340012975,1728328277228,-500.0,0.00039452,120]
[340012976,1728328277237,-500.0,0.00039452,120]
[340012977,1728328277246,-500.0,0.00039452,120]
[340012978,1728328277255,-500.0,0.00039452,120]
[340012979,1728328277264,-500.0,0.00039452,120]
[340012980,1728328277272,-544.92,0.00039452,120]
[340012981,1728328277282,-500.0,0.00039452,120]
[340012982,1728328277291,-560.37092291,0.00039452,120]
[340012983,1728328277300,-272.31301213,0.00039452,120]
[340012984,1728328277309,-461.28,0.00039452,120]
[340012985,1728328277318,-500.0,0.00039452,120]
[340012986,1728328277327,-500.0,0.00039452,120]
[340012987,1728328277336,-500.0,0.00039452,120]
[340012988,1728328277346,-500.0,0.00039452,120]
[340012989,1728328277356,-500.0,0.00039452,120]
[340012990,1728328277366,-500.0,0.00039452,120]
[340012991,1728328277375,-500.0,0.00039452,120]
[340012992,1728328277384,-579.67292162,0.00039452,120]
[340012993,1728328277394,-500.0,0.00039452,120]
[340012994,1728328277403,-500.0,0.00039452,120]
[340012995,1728328277419,-209.76812801,0.00039452,120]
[340012996,1728328277427,-500.0,0.00039452,120]
[340012997,1728328277436,-500.0,0.00039452,120]
[340012998,1728328277445,-500.0,0.00039452,120]
[340012999,1728328277455,-500.0,0.00039452,120]
[340013000,1728328277463,-500.0,0.00039452,120]
[340013001,1728328277473,-500.0,0.00039452,120]
[340013002,1728328277482,-500.0,0.00039452,7]
[340013003,1728328277491,-500.0,0.00039452,120]
[340013004,1728328277500,-150.0,0.0003949,7]
[340013005,1728328277510,-2110.0,0.000395,2]
[340013006,1728328277519,-1000.0,0.000395,2]
[340013007,1728328277530,-150.0,0.00039526,7]
[340013008,1728328277539,-150.0,0.00039538,7]
[340013009,1728328277548,-150.0,0.00039577,7]
[340013010,1728328277557,-150.0,0.00039664,7]
[340013011,1728328277567,-500.0,0.00039726,120]
[340013012,1728328277576,-306.19479734,0.00039726,120]
[340013013,1728328277585,-500.0,0.00039726,120]
[340013014,1728328277594,-500.0,0.00039726,120]
[340013015,1728328277605,-458.34067514,0.00039726,120]
[340013016,1728328277614,-500.0,0.00039726,120]
[340013017,1728328277623,-500.0,0.00039726,120]
[340013018,1728328277633,-210.08181347,0.00039726,120]
[340013019,1728328277642,-500.0,0.00039726,120]
[340013020,1728328277651,-500.0,0.00039726,120]
[340013021,1728328277660,-500.0,0.00039726,120]
[340013022,1728328277669,-500.0,0.00039726,120]
[340013023,1728328277679,-500.0,0.00039726,120]
[340013024,1728328277688,-500.0,0.00039726,120]
[340013025,1728328277697,-500.0,0.00039726,120]
[340013026,1728328277707,-500.0,0.00039726,120]
[340013027,1728328277716,-500.0,0.00039726,120]
[340013028,1728328277725,-500.0,0.00039726,120]
[340013029,1728328277734,-500.0,0.00039726,120]
[340013030,1728328277744,-526.85,0.00039726,120]
[340013031,1728328277753,-529.45717219,0.00039726,120]
[340013032,1728328277762,-500.0,0.00039726,120]
[340013033,1728328277772,-500.0,0.00039726,120]
[340013034,1728328277781,-249.84,0.00039726,120]
[340013035,1728328277790,-402.04,0.00039726,120]
[340013036,1728328277799,-500.0,0.00039726,120]
[340013037,1728328277809,-500.0,0.00039726,120]
[340013038,1728328277817,-500.0,0.00039726,120]
[340013039,1728328277827,-500.0,0.00039726,120]
[340013040,1728328277836,-312.13317658,0.00039726,120]
[340013041,1728328277845,-500.0,0.00039726,120]
[340013042,1728328277855,-500.0,0.00039726,120]
[340013043,1728328277864,-574.04106792,0.00039726,120]
[340013044,1728328277873,-546.81,0.00039726,120]
[340013045,1728328277882,-500.0,0.00039726,2]
[340013046,1728328277891,-382.3896169,0.00039726,120]
[340013047,1728328277900,-167.297853,0.00039726,120]
[340013048,1728328277909,-423.7183816,0.00039726,120]
[340013049,1728328277918,-500.0,0.00039726,120]
[340013050,1728328277927,-500.0,0.00039726,120]
[340013051,1728328277937,-500.0,0.00039726,120]
[340013052,1728328277946,-500.0,0.00039726,120]
[340013053,1728328277955,-500.0,0.00039726,120]
[340013054,1728328277964,-500.0,0.00039726,120]
[340013055,1728328277973,-1790.58,0.00039726,120]
[340013056,1728328277983,-500.0,0.00039726,30]
[340013057,1728328277992,-196.15,0.00039726,120]
[340013058,1728328278001,-500.0,0.00039726,120]
[340013059,1728328278010,-500.0,0.00039726,120]
[340013060,1728328278019,-500.0,0.00039726,120]
[340013061,1728328278028,-500.0,0.00039726,120]
[340013062,1728328278037,-500.0,0.00039726,120]
[340013063,1728328278046,-500.0,0.00039726,120]
[340013064,1728328278056,-500.0,0.00039726,120]
[340013065,1728328278146,-500.0,0.00039726,120]
[340013066,1728328278157,-500.0,0.00039726,120]
[340013067,1728328278166,-500.0,0.00039726,120]
[340013068,1728328278176,-464.81456583,0.00039726,120]
[340013069,1728328278185,-500.0,0.00039726,120]
[340013070,1728328278194,-471.66573331,0.00039726,120]
[340013071,1728328278204,-487.49028138,0.00039726,120]
[340013072,1728328278215,-268.02653448,0.00039726,120]
[340013073,1728328278225,-464.08533735,0.00039726,120]
[340013074,1728328278234,-500.0,0.00039726,120]
[340013075,1728328278243,-641.52,0.00039726,120]
[340013076,1728328278252,-500.0,0.00039726,120]
[340013077,1728328278261,-500.0,0.00039726,120]
[340013078,1728328278270,-457.85363846,0.00039726,120]
[340013079,1728328278279,-472.26407384,0.00039726,120]
[340013080,1728328278288,-500.0,0.00039726,120]
[340013081,1728328278297,-500.0,0.00039726,120]
[340013082,1728328278307,-500.0,0.00039726,120]
[340013083,1728328278316,-500.0,0.00039726,120]
[340013084,1728328278326,-211.50865241,0.00039726,120]
[340013085,1728328278335,-537.09,0.00039726,120]
[340013086,1728328278345,-240.21542645,0.00039726,120]
[340013087,1728328278355,-500.0,0.00039726,120]
[340013088,1728328278365,-500.0,0.00039726,120]
[340013089,1728328278374,-500.0,0.00039726,120]
[340013090,1728328278383,-500.0,0.00039726,120]
[340013091,1728328278393,-500.0,0.00039726,120]
[340013092,1728328278403,-500.0,0.00039726,120]
[340013093,1728328278412,-500.0,0.00039726,120]
[340013094,1728328278421,-500.0,0.00039726,120]
[340013095,1728328278430,-500.0,0.00039726,120]
[340013096,1728328278439,-500.0,0.00039726,120]
[340013097,1728328278449,-500.0,0.00039726,120]
[340013098,1728328278457,-500.0,0.00039726,120]
[340013099,1728328278467,-500.0,0.00039726,120]
[340013100,1728328278476,-500.0,0.00039726,120]
[340013101,1728328278486,-500.0,0.00039726,120]
[340013102,1728328278495,-281.19,0.00039726,120]
[340013103,1728328278505,-500.0,0.00039726,120]
[340013104,1728328278514,-500.0,0.00039726,120]
[340013105,1728328278524,-500.0,0.00039726,120]
[340013106,1728328278534,-500.0,0.00039726,120]
[340013107,1728328278543,-546.74,0.00039726,120]
[340013108,1728328278553,-500.0,0.00039726,120]
[340013109,1728328278562,-354.72011236,0.00039726,120]
[340013110,1728328278572,-500.0,0.00039726,120]
[340013111,1728328278582,-500.0,0.00039726,30]
[340013112,1728328278591,-500.0,0.00039726,120]
[340013113,1728328278602,-500.0,0.00039726,120]
[340013114,1728328278611,-500.0,0.00039726,120]
[340013115,1728328278621,-588.14,0.00039726,120]
[340013116,1728328278631,-500.0,0.00039726,120]
[340013117,1728328278641,-500.0,0.00039726,120]
[340013118,1728328278650,-500.0,0.00039726,120]
[340013119,1728328278660,-417.97,0.00039726,120]
[340013120,1728328278670,-500.0,0.00039726,120]
[340013121,1728328278679,-500.0,0.00039726,120]
[340013122,1728328278689,-249.26661607,0.00039726,120]
[340013123,1728328278698,-500.0,0.00039726,120]
[340013124,1728328278707,-213.7,0.00039726,120]
[340013125,1728328278717,-500.0,0.00039726,120]
[340013126,1728328278727,-500.0,0.00039726,120]
[340013127,1728328278736,-500.0,0.00039726,120]
[340013128,1728328278746,-305.20347626,0.00039726,120]
[340013129,1728328278756,-500.0,0.00039726,120]
[340013130,1728328278765,-500.0,0.00039726,120]
[340013131,1728328278775,-500.0,0.00039726,120]
[340013132,1728328278784,-500.0,0.00039726,120]
[340013133,1728328278793,-500.0,0.00039726,120]
[340013134,1728328278803,-487.62,0.00039726,120]
[340013135,1728328278813,-500.0,0.00039726,120]
[340013136,1728328278822,-500.0,0.00039726,120]
[340013137,1728328278831,-500.0,0.00039726,120]
[340013138,1728328278840,-301.92066003,0.00039726,120]
[340013139,1728328278850,-500.0,0.00039726,120]
[340013140,1728328278868,-500.0,0.00039726,120]
[340013141,1728328278878,-500.0,0.00039726,120]
[340013142,1728328278887,-175.92463229,0.00039726,120]
[340013143,1728328278896,-500.0,0.00039726,120]
[340013144,1728328278906,-500.0,0.00039726,120]
[340013145,1728328278915,-500.0,0.00039726,120]
[340013146,1728328278925,-500.0,0.00039726,120]
[340013147,1728328278934,-641.91280315,0.00039726,90]
[340013148,1728328278945,-503.0094103,0.00039726,120]
[340013149,1728328278954,-500.0,0.00039726,120]
[340013150,1728328278964,-500.0,0.00039726,120]
[340013151,1728328278974,-500.0,0.00039726,120]
[340013152,1728328278983,-500.0,0.00039726,120]
[340013153,1728328278993,-500.0,0.00039726,120]
[340013154,1728328279003,-343.87385989,0.00039726,120]
[340013155,1728328279012,-500.0,0.00039726,120]
[340013156,1728328279022,-500.0,0.00039726,120]
[340013157,1728328279031,-500.0,0.00039726,120]
[340013158,1728328279040,-500.0,0.00039726,120]
[340013159,1728328279049,-354.36093201,0.00039726,120]
[340013160,1728328279059,-500.0,0.00039726,120]
[340013161,1728328279069,-500.0,0.00039726,120]
[340013162,1728328279078,-500.0,0.00039726,120]
[340013163,1728328279087,-500.0,0.00039726,120]
[340013164,1728328279096,-500.0,0.00039726,120]
[340013165,1728328279106,-503.0,0.00039726,120]
[340013166,1728328279116,-500.0,0.00039726,120]
[340013167,1728328279126,-1259.32,0.00039726,120]
[340013168,1728328279138,-343.08094525,0.00039726,120]
[340013169,1728328279147,-500.0,0.00039726,120]
[340013170,1728328279156,-282.10480296,0.00039726,120]
[340013171,1728328279166,-500.0,0.00039726,120]
[340013172,1728328279175,-431.56,0.00039726,120]
[340013173,1728328279185,-361.4,0.00039726,120]
[340013174,1728328279194,-500.0,0.00039726,120]
[340013175,1728328279203,-390.93,0.00039726,120]
[340013176,1728328279212,-500.0,0.00039726,120]
[340013177,1728328279222,-500.0,0.00039726,120]
[340013178,1728328279231,-500.0,0.00039726,14]
[340013179,1728328279240,-500.0,0.00039726,120]
[340013180,1728328279249,-512.09,0.00039726,120]
[340013181,1728328279258,-500.0,0.00039726,120]
[340013182,1728328279267,-500.0,0.00039726,120]
[340013183,1728328279276,-500.0,0.00039726,120]
[340013184,1728328279285,-500.0,0.00039726,120]
[340013185,1728328279294,-500.0,0.00039726,120]
[340013186,1728328279304,-538.11,0.00039726,120]
[340013187,1728328279313,-500.0,0.00039726,120]
[340013188,1728328279322,-500.0,0.00039726,120]
[340013189,1728328279331,-214.04445839,0.00039726,120]
[340013190,1728328279340,-656.69,0.00039726,120]
[340013191,1728328279351,-500.0,0.00039726,120]
[340013192,1728328279360,-500.0,0.00039726,120]
[340013193,1728328279369,-500.0,0.00039726,120]
[340013194,1728328279378,-500.0,0.00039726,120]
[340013195,1728328279387,-500.0,0.00039726,120]
[340013196,1728328279397,-500.0,0.00039726,120]
[340013197,1728328279407,-500.0,0.00039726,120]
[340013198,1728328279497,-500.0,0.00039726,120]
[340013199,1728328279507,-502.44,0.00039726,120]
[340013200,1728328279517,-500.0,0.00039726,120]
[340013201,1728328279527,-500.0,0.00039726,120]
[340013202,1728328279537,-579.58542415,0.00039726,120]
[340013203,1728328279547,-423.24,0.00039726,120]
[340013204,1728328279557,-500.0,0.00039726,120]
[340013205,1728328279567,-500.0,0.00039726,120]
[340013206,1728328279576,-500.0,0.00039726,120]
[340013207,1728328279586,-500.0,0.00039726,120]
[340013208,1728328279596,-2246.05,0.00039726,120]
[340013209,1728328279609,-500.0,0.00039726,120]
[340013210,1728328279618,-263.39678779,0.00039726,120]
[340013211,1728328279628,-500.0,0.00039726,120]
[340013212,1728328279637,-160.82,0.00039726,120]
[340013213,1728328279647,-500.0,0.00039726,120]
[340013214,1728328279656,-256.6,0.00039726,120]
[340013215,1728328279666,-500.0,0.00039726,120]
[340013216,1728328279675,-255.9,0.00039726,120]
[340013217,1728328279685,-644.25,0.00039726,120]
[340013218,1728328279694,-237.6,0.00039726,120]
[340013219,1728328279703,-500.0,0.00039726,120]
[340013220,1728328279713,-500.0,0.00039726,120]
[340013221,1728328279723,-500.0,0.00039726,120]
[340013222,1728328279732,-500.0,0.00039726,120]
[340013223,1728328279742,-500.0,0.00039726,120]
[340013224,1728328279751,-500.0,0.00039726,120]
[340013225,1728328279760,-500.0,0.00039726,120]
[340013226,1728328279770,-294.71173709,0.00039726,120]
[340013227,1728328279779,-500.0,0.00039726,120]
[340013228,1728328279788,-500.0,0.00039726,24]
[340013229,1728328279798,-500.0,0.00039726,120]
[340013230,1728328279807,-541.60318421,0.00039726,120]
[340013231,1728328279817,-500.0,0.00039726,120]
[340013232,1728328279826,-500.0,0.00039726,120]
[340013233,1728328279837,-500.0,0.00039726,120]
[340013234,1728328279846,-500.0,0.00039726,120]
[340013235,1728328279858,-500.0,0.00039726,120]
[340013236,1728328279867,-644.9595774,0.00039726,120]
[340013237,1728328279877,-611.92289693,0.00039726,120]
[340013238,1728328279886,-500.0,0.00039726,120]
[340013239,1728328279895,-500.0,0.00039726,120]
[340013240,1728328279904,-500.0,0.00039726,120]
[340013241,1728328279913,-539.69525434,0.00039726,120]
[340013242,1728328279923,-500.0,0.00039726,120]
[340013243,1728328279932,-500.0,0.00039726,120]
[340013244,1728328279942,-516.08,0.00039726,120]
[340013245,1728328279951,-444.33080014,0.00039726,120]
[340013246,1728328279960,-284.08615184,0.00039726,120]
[340013247,1728328279970,-500.0,0.00039726,120]
[340013248,1728328279980,-500.0,0.00039726,120]
[340013249,1728328279989,-246.61067256,0.00039726,120]
[340013250,1728328279999,-363.66629798,0.00039726,120]
[340013251,1728328280008,-500.0,0.00039726,120]
[340013252,1728328280018,-500.0,0.00039726,120]
[340013253,1728328280027,-500.0,0.00039726,120]
[340013254,1728328280036,-500.0,0.00039726,120]
[340013255,1728328280046,-1455.705405,0.00039726,14]
[340013256,1728328280055,-500.0,0.00039726,120]
[340013257,1728328280064,-500.0,0.00039726,120]
[340013258,1728328280074,-1455.705405,0.00039726,14]
[340013259,1728328280083,-500.0,0.00039726,120]
[340013260,1728328280103,-182.12671645,0.00039726,120]
[340013261,1728328280119,-2095.07,0.00039726,120]
[340013262,1728328280140,-500.0,0.00039726,120]
[340013263,1728328280159,-500.0,0.00039726,120]
[340013264,1728328280179,-244.41047319,0.00039726,120]
[340013265,1728328280197,-200.047939,0.00039726,120]
[340013266,1728328280214,-269.88812655,0.00039726,120]
[340013267,1728328280229,-500.0,0.00039726,120]
[340013268,1728328280247,-500.0,0.00039726,120]
[340013269,1728328280268,-500.0,0.00039726,120]
[340013270,1728328280282,-197.13,0.00039726,120]
[340013271,1728328280298,-500.0,0.00039726,120]
[340013272,1728328280314,-570.55,0.00039726,120]
[340013273,1728328280331,-349.52,0.00039726,120]
[340013274,1728328280344,-491.65,0.00039726,120]
[340013275,1728328280361,-500.0,0.00039726,120]
[340013276,1728328280378,-500.0,0.00039726,120]
[340013277,1728328280392,-500.0,0.00039726,120]
[340013278,1728328280407,-500.0,0.00039726,120]
[340013279,1728328280422,-236.13,0.00039726,120]
[340013280,1728328280437,-500.0,0.00039726,120]
[340013281,1728328280452,-500.0,0.00039726,120]
[340013282,1728328280466,-500.0,0.00039726,120]
[340013283,1728328280481,-548.82817886,0.00039726,120]
[340013284,1728328280496,-310.64,0.00039726,7]
[340013285,1728328280511,-500.0,0.00039726,120]
[340013286,1728328280526,-200.0,0.00039728,75]
[340013287,1728328280541,-150.0,0.00039743,7]
[340013288,1728328280555,-150.0,0.00039752,7]
[340013289,1728328280569,-150.0,0.00039767,7]
[340013290,1728328280583,-1000.0,0.000398,120]
[340013291,1728328280598,-1000.0,0.000398,120]
[340013292,1728328280612,-1000.0,0.000398,120]
[340013293,1728328280626,-1000.0,0.000398,120]
[340013294,1728328280640,-1000.0,0.000398,120]
[340013295,1728328280654,-1000.0,0.000398,120]
[340013296,1728328280669,-1000.0,0.000398,120]